{"text_format":"3","workbook":"xlsx","n_sheets":7,"sheets":["Instructions","Notes and Guidelines","1.1.Labour rates_CORE CREW","1.2.Labour rates_OUTAGE CREW","Labour Rates","Accomodation Rates","Travelling"],"not_rendered":{"images":2,"defined_names":100},"read":"whole","date_system":"1900"}

{"sheet":"Instructions","index":0,"n_rows":9,"n_cols":3,"rows_kept":9}
[]
[]
[]
[null,"Complete all tabs "]
[null,"Tab","Description"]
[null,"1.1. Labour rates: Core Crew ","Complete the hourly rates in R/hr for all the roles in the Service Informance"]
[null,"1.2. Labour rates: Outage Crew","Complete the hourly rates in R/hr for all the roles in the Service Informance"]
[null,"Sevices NOT generally required on Core Crew will be apllied via the Outage Crew rate if and when required."]
[null,"Note : Price participating power stations as defined in the works information for each respective cluster."]

{"sheet":"Notes and Guidelines","index":1,"n_rows":9,"n_cols":2,"rows_kept":9,"merged":[[0,0,0,1]]}
["Skill and Qualification relating to Artisan Definition & Qualification"]
[1,"The Contractor commits to align with the Employer's strategy to supply qualified artisans. Both Parties recognize the value of experience embedded in the Contractor's existing workforce as it relates to unqualified but experienced skilled personnel. The Employer agrees that the Contractor can make use of the unqualified but experienced skilled personnel on the following basis, for a period not exceeding 3 years from commencement date of the contract. "]
[2,"Where the Contractor selects to make use of the remaining unqualified but experienced skilled personnel, this needs to be communicated and permission granted prior to execution of the work where such permission shall not be unduly withheld, where prior approval has been granted, a list of names and identification numbers need to be submitted quarterly to the Service Manager. "]
[3,"The Employer has the right to check or request supporting documents including qualifications related to personnel being brought to the site to perform the work. If the Contractor fails to provide requested information, the Employer has the right to pay the semi-skilled rate for the affected personnel. "]
[4,"The Contractor communicates this by supplying a list of unqualified but experienced skilled personnel to demonstrate that: "]
[5,"Unqualified Fitters have at least 5 years technical/practical product experience, where fitters have less than five years' experience then the semi-skilled rate will be charged. "]
[6,"Coded welders have passed a practical test for the applicable welding procedure which confirms competency "]
[7,"The Parties agree, in terms of the Employment Equity Act and the Metal and Engineering Industries Bargaining Council main agreement, that the tasks performed by the above skills-sets be charged in line with the artisan rate stipulated in the Contract. "]
[8,"The Contractor will continue to encourage skilled experienced personnel from within the current workforce to obtain applicable qualification."]

{"sheet":"1.1.Labour rates_CORE CREW","index":2,"n_rows":20,"n_cols":17,"rows_kept":20}
[]
["No.","Designation","Type of Worker","Base rates source","MEIBC/ECSA/Other Grade/Category","Base_Rate\nR/hr","Provident %","SickFund %","Leave Enhancement %","PPE Admin %","Overheads %","Admin Levies","Subsistence allowance","Margin %","Rate excl. Margin","Margin","NormalRate (All inclusive)"]
[1,"Supervisor (includes Welding Supervisor)",{"$nulls":3},{"v":0,"d":"R0.00"},{"v":0,"d":"0%"},{"v":0,"d":"0%"},{"v":0,"d":"0%"},{"v":0,"d":"0%"},{"v":0,"d":"0%"},{"v":0,"d":"R0.00"},{"v":0,"d":"R0.00"},{"v":0,"d":"0%"},{"$f":"Table2[[#This Row],[Base_Rate\nR/hr]]+Table2[[#This Row],[Base_Rate\nR/hr]]*(Table2[[#This Row],[Provident %]]+Table2[[#This Row],[SickFund %]]+Table2[[#This Row],[Leave Enhancement %]]+Table2[[#This Row],[PPE Admin %]]+Table2[[#This Row],[Overheads %]])+Table2[[#This Row],[Admin Levies]]+Table2[[#This Row],[Subsistence allowance]]","v":{"v":0,"d":"R0.00"}},{"$f":"Table2[[#This Row],[Margin %]]*Table2[[#This Row],[Base_Rate\nR/hr]]","v":{"v":0,"d":"R0.00"}},{"$f":"Table2[[#This Row],[Rate excl. Margin]]+Table2[[#This Row],[Margin]]","v":{"v":0,"d":"R0.00"}}]
[2,"Artisan / Welder (Includes B-Class Welder,Fitter,Pipe Fitter)",{"$nulls":3},{"v":0,"d":"R0.00"},{"v":0,"d":"0%"},{"v":0,"d":"0%"},{"v":0,"d":"0%"},{"v":0,"d":"0%"},{"v":0,"d":"0%"},{"v":0,"d":"R0.00"},{"v":0,"d":"R0.00"},{"v":0,"d":"0%"},{"$f":"Table2[[#This Row],[Base_Rate\nR/hr]]+Table2[[#This Row],[Base_Rate\nR/hr]]*(Table2[[#This Row],[Provident %]]+Table2[[#This Row],[SickFund %]]+Table2[[#This Row],[Leave Enhancement %]]+Table2[[#This Row],[PPE Admin %]]+Table2[[#This Row],[Overheads %]])+Table2[[#This Row],[Admin Levies]]+Table2[[#This Row],[Subsistence allowance]]","v":{"v":0,"d":"R0.00"}},{"$f":"Table2[[#This Row],[Margin %]]*Table2[[#This Row],[Base_Rate\nR/hr]]","v":{"v":0,"d":"R0.00"}},{"$f":"Table2[[#This Row],[Rate excl. Margin]]+Table2[[#This Row],[Margin]]","v":{"v":0,"d":"R0.00"}}]
[3,"Assistant (Labourer)",{"$nulls":3},{"v":0,"d":"R0.00"},{"v":0,"d":"0%"},{"v":0,"d":"0%"},{"v":0,"d":"0%"},{"v":0,"d":"0%"},{"v":0,"d":"0%"},{"v":0,"d":"R0.00"},{"v":0,"d":"R0.00"},{"v":0,"d":"0%"},{"$f":"Table2[[#This Row],[Base_Rate\nR/hr]]+Table2[[#This Row],[Base_Rate\nR/hr]]*(Table2[[#This Row],[Provident %]]+Table2[[#This Row],[SickFund %]]+Table2[[#This Row],[Leave Enhancement %]]+Table2[[#This Row],[PPE Admin %]]+Table2[[#This Row],[Overheads %]])+Table2[[#This Row],[Admin Levies]]+Table2[[#This Row],[Subsistence allowance]]","v":{"v":0,"d":"R0.00"}},{"$f":"Table2[[#This Row],[Margin %]]*Table2[[#This Row],[Base_Rate\nR/hr]]","v":{"v":0,"d":"R0.00"}},{"$f":"Table2[[#This Row],[Rate excl. Margin]]+Table2[[#This Row],[Margin]]","v":{"v":0,"d":"R0.00"}}]
[4,"Specialised Welder (A-Class applicable for Level 1 plant Fans only)",{"$nulls":3},{"v":0,"d":"R0.00"},{"v":0,"d":"0%"},{"v":0,"d":"0%"},{"v":0,"d":"0%"},{"v":0,"d":"0%"},{"v":0,"d":"0%"},{"v":0,"d":"R0.00"},{"v":0,"d":"R0.00"},{"v":0,"d":"0%"},{"$f":"Table2[[#This Row],[Base_Rate\nR/hr]]+Table2[[#This Row],[Base_Rate\nR/hr]]*(Table2[[#This Row],[Provident %]]+Table2[[#This Row],[SickFund %]]+Table2[[#This Row],[Leave Enhancement %]]+Table2[[#This Row],[PPE Admin %]]+Table2[[#This Row],[Overheads %]])+Table2[[#This Row],[Admin Levies]]+Table2[[#This Row],[Subsistence allowance]]","v":{"v":0,"d":"R0.00"}},{"$f":"Table2[[#This Row],[Margin %]]*Table2[[#This Row],[Base_Rate\nR/hr]]","v":{"v":0,"d":"R0.00"}},{"$f":"Table2[[#This Row],[Rate excl. Margin]]+Table2[[#This Row],[Margin]]","v":{"v":0,"d":"R0.00"}}]
[5,"Semi-Skilled (Hoist Drivers)",{"$nulls":3},{"v":0,"d":"R0.00"},{"v":0,"d":"0%"},{"v":0,"d":"0%"},{"v":0,"d":"0%"},{"v":0,"d":"0%"},{"v":0,"d":"0%"},{"v":0,"d":"R0.00"},{"v":0,"d":"R0.00"},{"v":0,"d":"0%"},{"$f":"Table2[[#This Row],[Base_Rate\nR/hr]]+Table2[[#This Row],[Base_Rate\nR/hr]]*(Table2[[#This Row],[Provident %]]+Table2[[#This Row],[SickFund %]]+Table2[[#This Row],[Leave Enhancement %]]+Table2[[#This Row],[PPE Admin %]]+Table2[[#This Row],[Overheads %]])+Table2[[#This Row],[Admin Levies]]+Table2[[#This Row],[Subsistence allowance]]","v":{"v":0,"d":"R0.00"}},{"$f":"Table2[[#This Row],[Margin %]]*Table2[[#This Row],[Base_Rate\nR/hr]]","v":{"v":0,"d":"R0.00"}},{"$f":"Table2[[#This Row],[Rate excl. Margin]]+Table2[[#This Row],[Margin]]","v":{"v":0,"d":"R0.00"}}]
[6,"Semi-Skilled (Fork lift Drivers)",{"$nulls":3},{"v":0,"d":"R0.00"},{"v":0,"d":"0%"},{"v":0,"d":"0%"},{"v":0,"d":"0%"},{"v":0,"d":"0%"},{"v":0,"d":"0%"},{"v":0,"d":"R0.00"},{"v":0,"d":"R0.00"},{"v":0,"d":"0%"},{"$f":"Table2[[#This Row],[Base_Rate\nR/hr]]+Table2[[#This Row],[Base_Rate\nR/hr]]*(Table2[[#This Row],[Provident %]]+Table2[[#This Row],[SickFund %]]+Table2[[#This Row],[Leave Enhancement %]]+Table2[[#This Row],[PPE Admin %]]+Table2[[#This Row],[Overheads %]])+Table2[[#This Row],[Admin Levies]]+Table2[[#This Row],[Subsistence allowance]]","v":{"v":0,"d":"R0.00"}},{"$f":"Table2[[#This Row],[Margin %]]*Table2[[#This Row],[Base_Rate\nR/hr]]","v":{"v":0,"d":"R0.00"}},{"$f":"Table2[[#This Row],[Rate excl. Margin]]+Table2[[#This Row],[Margin]]","v":{"v":0,"d":"R0.00"}}]
[7,"Semi-Skilled (Crane Drivers)",{"$nulls":3},{"v":0,"d":"R0.00"},{"v":0,"d":"0%"},{"v":0,"d":"0%"},{"v":0,"d":"0%"},{"v":0,"d":"0%"},{"v":0,"d":"0%"},{"v":0,"d":"R0.00"},{"v":0,"d":"R0.00"},{"v":0,"d":"0%"},{"$f":"Table2[[#This Row],[Base_Rate\nR/hr]]+Table2[[#This Row],[Base_Rate\nR/hr]]*(Table2[[#This Row],[Provident %]]+Table2[[#This Row],[SickFund %]]+Table2[[#This Row],[Leave Enhancement %]]+Table2[[#This Row],[PPE Admin %]]+Table2[[#This Row],[Overheads %]])+Table2[[#This Row],[Admin Levies]]+Table2[[#This Row],[Subsistence allowance]]","v":{"v":0,"d":"R0.00"}},{"$f":"Table2[[#This Row],[Margin %]]*Table2[[#This Row],[Base_Rate\nR/hr]]","v":{"v":0,"d":"R0.00"}},{"$f":"Table2[[#This Row],[Rate excl. Margin]]+Table2[[#This Row],[Margin]]","v":{"v":0,"d":"R0.00"}}]
[8,"Hot Work Observer",{"$nulls":3},{"v":0,"d":"R0.00"},{"v":0,"d":"0%"},{"v":0,"d":"0%"},{"v":0,"d":"0%"},{"v":0,"d":"0%"},{"v":0,"d":"0%"},{"v":0,"d":"R0.00"},{"v":0,"d":"R0.00"},{"v":0,"d":"0%"},{"$f":"Table2[[#This Row],[Base_Rate\nR/hr]]+Table2[[#This Row],[Base_Rate\nR/hr]]*(Table2[[#This Row],[Provident %]]+Table2[[#This Row],[SickFund %]]+Table2[[#This Row],[Leave Enhancement %]]+Table2[[#This Row],[PPE Admin %]]+Table2[[#This Row],[Overheads %]])+Table2[[#This Row],[Admin Levies]]+Table2[[#This Row],[Subsistence allowance]]","v":{"v":0,"d":"R0.00"}},{"$f":"Table2[[#This Row],[Margin %]]*Table2[[#This Row],[Base_Rate\nR/hr]]","v":{"v":0,"d":"R0.00"}},{"$f":"Table2[[#This Row],[Rate excl. Margin]]+Table2[[#This Row],[Margin]]","v":{"v":0,"d":"R0.00"}}]
[9,"Planner",{"$nulls":3},{"v":0,"d":"R0.00"},{"v":0,"d":"0%"},{"v":0,"d":"0%"},{"v":0,"d":"0%"},{"v":0,"d":"0%"},{"v":0,"d":"0%"},{"v":0,"d":"R0.00"},{"v":0,"d":"R0.00"},{"v":0,"d":"0%"},{"$f":"Table2[[#This Row],[Base_Rate\nR/hr]]+Table2[[#This Row],[Base_Rate\nR/hr]]*(Table2[[#This Row],[Provident %]]+Table2[[#This Row],[SickFund %]]+Table2[[#This Row],[Leave Enhancement %]]+Table2[[#This Row],[PPE Admin %]]+Table2[[#This Row],[Overheads %]])+Table2[[#This Row],[Admin Levies]]+Table2[[#This Row],[Subsistence allowance]]","v":{"v":0,"d":"R0.00"}},{"$f":"Table2[[#This Row],[Margin %]]*Table2[[#This Row],[Base_Rate\nR/hr]]","v":{"v":0,"d":"R0.00"}},{"$f":"Table2[[#This Row],[Rate excl. Margin]]+Table2[[#This Row],[Margin]]","v":{"v":0,"d":"R0.00"}}]
[10,"Rigger (above 5 Ton)",{"$nulls":3},{"v":0,"d":"R0.00"},{"v":0,"d":"0%"},{"v":0,"d":"0%"},{"v":0,"d":"0%"},{"v":0,"d":"0%"},{"v":0,"d":"0%"},{"v":0,"d":"R0.00"},{"v":0,"d":"R0.00"},{"v":0,"d":"0%"},{"$f":"Table2[[#This Row],[Base_Rate\nR/hr]]+Table2[[#This Row],[Base_Rate\nR/hr]]*(Table2[[#This Row],[Provident %]]+Table2[[#This Row],[SickFund %]]+Table2[[#This Row],[Leave Enhancement %]]+Table2[[#This Row],[PPE Admin %]]+Table2[[#This Row],[Overheads %]])+Table2[[#This Row],[Admin Levies]]+Table2[[#This Row],[Subsistence allowance]]","v":{"v":0,"d":"R0.00"}},{"$f":"Table2[[#This Row],[Margin %]]*Table2[[#This Row],[Base_Rate\nR/hr]]","v":{"v":0,"d":"R0.00"}},{"$f":"Table2[[#This Row],[Rate excl. Margin]]+Table2[[#This Row],[Margin]]","v":{"v":0,"d":"R0.00"}}]
[11,"Axial Flow Supervisor",{"$nulls":3},{"v":0,"d":"R0.00"},{"v":0,"d":"0%"},{"v":0,"d":"0%"},{"v":0,"d":"0%"},{"v":0,"d":"0%"},{"v":0,"d":"0%"},{"v":0,"d":"R0.00"},{"v":0,"d":"R0.00"},{"v":0,"d":"0%"},{"$f":"Table2[[#This Row],[Base_Rate\nR/hr]]+Table2[[#This Row],[Base_Rate\nR/hr]]*(Table2[[#This Row],[Provident %]]+Table2[[#This Row],[SickFund %]]+Table2[[#This Row],[Leave Enhancement %]]+Table2[[#This Row],[PPE Admin %]]+Table2[[#This Row],[Overheads %]])+Table2[[#This Row],[Admin Levies]]+Table2[[#This Row],[Subsistence allowance]]","v":{"v":0,"d":"R0.00"}},{"$f":"Table2[[#This Row],[Margin %]]*Table2[[#This Row],[Base_Rate\nR/hr]]","v":{"v":0,"d":"R0.00"}},{"$f":"Table2[[#This Row],[Rate excl. Margin]]+Table2[[#This Row],[Margin]]","v":{"v":0,"d":"R0.00"}}]
[12,"Axial Flow Fitter (where Applicable)",{"$nulls":3},{"v":0,"d":"R0.00"},{"v":0,"d":"0%"},{"v":0,"d":"0%"},{"v":0,"d":"0%"},{"v":0,"d":"0%"},{"v":0,"d":"0%"},{"v":0,"d":"R0.00"},{"v":0,"d":"R0.00"},{"v":0,"d":"0%"},{"$f":"Table2[[#This Row],[Base_Rate\nR/hr]]+Table2[[#This Row],[Base_Rate\nR/hr]]*(Table2[[#This Row],[Provident %]]+Table2[[#This Row],[SickFund %]]+Table2[[#This Row],[Leave Enhancement %]]+Table2[[#This Row],[PPE Admin %]]+Table2[[#This Row],[Overheads %]])+Table2[[#This Row],[Admin Levies]]+Table2[[#This Row],[Subsistence allowance]]","v":{"v":0,"d":"R0.00"}},{"$f":"Table2[[#This Row],[Margin %]]*Table2[[#This Row],[Base_Rate\nR/hr]]","v":{"v":0,"d":"R0.00"}},{"$f":"Table2[[#This Row],[Rate excl. Margin]]+Table2[[#This Row],[Margin]]","v":{"v":0,"d":"R0.00"}}]
[13,"Axial Flow Semi Skill (where Applicable)",{"$nulls":3},{"v":0,"d":"R0.00"},{"v":0,"d":"0%"},{"v":0,"d":"0%"},{"v":0,"d":"0%"},{"v":0,"d":"0%"},{"v":0,"d":"0%"},{"v":0,"d":"R0.00"},{"v":0,"d":"R0.00"},{"v":0,"d":"0%"},{"$f":"Table2[[#This Row],[Base_Rate\nR/hr]]+Table2[[#This Row],[Base_Rate\nR/hr]]*(Table2[[#This Row],[Provident %]]+Table2[[#This Row],[SickFund %]]+Table2[[#This Row],[Leave Enhancement %]]+Table2[[#This Row],[PPE Admin %]]+Table2[[#This Row],[Overheads %]])+Table2[[#This Row],[Admin Levies]]+Table2[[#This Row],[Subsistence allowance]]","v":{"v":0,"d":"R0.00"}},{"$f":"Table2[[#This Row],[Margin %]]*Table2[[#This Row],[Base_Rate\nR/hr]]","v":{"v":0,"d":"R0.00"}},{"$f":"Table2[[#This Row],[Rate excl. Margin]]+Table2[[#This Row],[Margin]]","v":{"v":0,"d":"R0.00"}}]
[14,"Axial Flow Assistant (where Applicable)",{"$nulls":3},{"v":0,"d":"R0.00"},{"v":0,"d":"0%"},{"v":0,"d":"0%"},{"v":0,"d":"0%"},{"v":0,"d":"0%"},{"v":0,"d":"0%"},{"v":0,"d":"R0.00"},{"v":0,"d":"R0.00"},{"v":0,"d":"0%"},{"$f":"Table2[[#This Row],[Base_Rate\nR/hr]]+Table2[[#This Row],[Base_Rate\nR/hr]]*(Table2[[#This Row],[Provident %]]+Table2[[#This Row],[SickFund %]]+Table2[[#This Row],[Leave Enhancement %]]+Table2[[#This Row],[PPE Admin %]]+Table2[[#This Row],[Overheads %]])+Table2[[#This Row],[Admin Levies]]+Table2[[#This Row],[Subsistence allowance]]","v":{"v":0,"d":"R0.00"}},{"$f":"Table2[[#This Row],[Margin %]]*Table2[[#This Row],[Base_Rate\nR/hr]]","v":{"v":0,"d":"R0.00"}},{"$f":"Table2[[#This Row],[Rate excl. Margin]]+Table2[[#This Row],[Margin]]","v":{"v":0,"d":"R0.00"}}]
[15,"Site Manager",{"$nulls":3},{"v":0,"d":"R0.00"},{"v":0,"d":"0%"},{"v":0,"d":"0%"},{"v":0,"d":"0%"},{"v":0,"d":"0%"},{"v":0,"d":"0%"},{"v":0,"d":"R0.00"},{"v":0,"d":"R0.00"},{"v":0,"d":"0%"},{"$f":"Table2[[#This Row],[Base_Rate\nR/hr]]+Table2[[#This Row],[Base_Rate\nR/hr]]*(Table2[[#This Row],[Provident %]]+Table2[[#This Row],[SickFund %]]+Table2[[#This Row],[Leave Enhancement %]]+Table2[[#This Row],[PPE Admin %]]+Table2[[#This Row],[Overheads %]])+Table2[[#This Row],[Admin Levies]]+Table2[[#This Row],[Subsistence allowance]]","v":{"v":0,"d":"R0.00"}},{"$f":"Table2[[#This Row],[Margin %]]*Table2[[#This Row],[Base_Rate\nR/hr]]","v":{"v":0,"d":"R0.00"}},{"$f":"Table2[[#This Row],[Rate excl. Margin]]+Table2[[#This Row],[Margin]]","v":{"v":0,"d":"R0.00"}}]
[16,"Service Engineer (Balance and Alignment Technician)",{"$nulls":3},{"v":0,"d":"R0.00"},{"v":0,"d":"0%"},{"v":0,"d":"0%"},{"v":0,"d":"0%"},{"v":0,"d":"0%"},{"v":0,"d":"0%"},{"v":0,"d":"R0.00"},{"v":0,"d":"R0.00"},{"v":0,"d":"0%"},{"$f":"Table2[[#This Row],[Base_Rate\nR/hr]]+Table2[[#This Row],[Base_Rate\nR/hr]]*(Table2[[#This Row],[Provident %]]+Table2[[#This Row],[SickFund %]]+Table2[[#This Row],[Leave Enhancement %]]+Table2[[#This Row],[PPE Admin %]]+Table2[[#This Row],[Overheads %]])+Table2[[#This Row],[Admin Levies]]+Table2[[#This Row],[Subsistence allowance]]","v":{"v":0,"d":"R0.00"}},{"$f":"Table2[[#This Row],[Margin %]]*Table2[[#This Row],[Base_Rate\nR/hr]]","v":{"v":0,"d":"R0.00"}},{"$f":"Table2[[#This Row],[Rate excl. Margin]]+Table2[[#This Row],[Margin]]","v":{"v":0,"d":"R0.00"}}]
[17,"Engineer, Design Engineer,Test Engineer",{"$nulls":3},{"v":0,"d":"R0.00"},{"v":0,"d":"0%"},{"v":0,"d":"0%"},{"v":0,"d":"0%"},{"v":0,"d":"0%"},{"v":0,"d":"0%"},{"v":0,"d":"R0.00"},{"v":0,"d":"R0.00"},{"v":0,"d":"0%"},{"$f":"Table2[[#This Row],[Base_Rate\nR/hr]]+Table2[[#This Row],[Base_Rate\nR/hr]]*(Table2[[#This Row],[Provident %]]+Table2[[#This Row],[SickFund %]]+Table2[[#This Row],[Leave Enhancement %]]+Table2[[#This Row],[PPE Admin %]]+Table2[[#This Row],[Overheads %]])+Table2[[#This Row],[Admin Levies]]+Table2[[#This Row],[Subsistence allowance]]","v":{"v":0,"d":"R0.00"}},{"$f":"Table2[[#This Row],[Margin %]]*Table2[[#This Row],[Base_Rate\nR/hr]]","v":{"v":0,"d":"R0.00"}},{"$f":"Table2[[#This Row],[Rate excl. Margin]]+Table2[[#This Row],[Margin]]","v":{"v":0,"d":"R0.00"}}]
[18,"Draughtsman",{"$nulls":3},{"v":0,"d":"R0.00"},{"v":0,"d":"0%"},{"v":0,"d":"0%"},{"v":0,"d":"0%"},{"v":0,"d":"0%"},{"v":0,"d":"0%"},{"v":0,"d":"R0.00"},{"v":0,"d":"R0.00"},{"v":0,"d":"0%"},{"$f":"Table2[[#This Row],[Base_Rate\nR/hr]]+Table2[[#This Row],[Base_Rate\nR/hr]]*(Table2[[#This Row],[Provident %]]+Table2[[#This Row],[SickFund %]]+Table2[[#This Row],[Leave Enhancement %]]+Table2[[#This Row],[PPE Admin %]]+Table2[[#This Row],[Overheads %]])+Table2[[#This Row],[Admin Levies]]+Table2[[#This Row],[Subsistence allowance]]","v":{"v":0,"d":"R0.00"}},{"$f":"Table2[[#This Row],[Margin %]]*Table2[[#This Row],[Base_Rate\nR/hr]]","v":{"v":0,"d":"R0.00"}},{"$f":"Table2[[#This Row],[Rate excl. Margin]]+Table2[[#This Row],[Margin]]","v":{"v":0,"d":"R0.00"}}]

{"sheet":"1.2.Labour rates_OUTAGE CREW","index":3,"n_rows":20,"n_cols":17,"rows_kept":20}
[]
["No.","Designation","Type of Worker","Base rates source","MEIBC/ECSA/Other Grade/Category","Base_Rate\nR/hr","Provident %","SickFund %","Leave Enhancement %","PPE Admin %","Overheads %","Admin Levies","Subsistence allowance","Margin %","Rate excl. Margin","Margin","NormalRate (All inclusive)"]
[1,"Supervisor (includes Welding Supervisor)",{"$nulls":3},{"v":0,"d":"R0.00"},{"v":0,"d":"0%"},{"v":0,"d":"0%"},{"v":0,"d":"0%"},{"v":0,"d":"0%"},{"v":0,"d":"0%"},{"v":0,"d":"R0.00"},{"v":0,"d":"R0.00"},{"v":0,"d":"0%"},{"$f":"Table26[[#This Row],[Base_Rate\nR/hr]]+Table26[[#This Row],[Base_Rate\nR/hr]]*(Table26[[#This Row],[Provident %]]+Table26[[#This Row],[SickFund %]]+Table26[[#This Row],[Leave Enhancement %]]+Table26[[#This Row],[PPE Admin %]]+Table26[[#This Row],[Overheads %]])+Table26[[#This Row],[Admin Levies]]+Table26[[#This Row],[Subsistence allowance]]","v":{"v":0,"d":"R0.00"}},{"$f":"Table26[[#This Row],[Margin %]]*Table26[[#This Row],[Base_Rate\nR/hr]]","v":{"v":0,"d":"R0.00"}},{"$f":"Table26[[#This Row],[Rate excl. Margin]]+Table26[[#This Row],[Margin]]","v":{"v":0,"d":"R0.00"}}]
[2,"Artisan / Welder (Includes B-Class Welder,Fitter,Pipe Fitter)",{"$nulls":3},{"v":0,"d":"R0.00"},{"v":0,"d":"0%"},{"v":0,"d":"0%"},{"v":0,"d":"0%"},{"v":0,"d":"0%"},{"v":0,"d":"0%"},{"v":0,"d":"R0.00"},{"v":0,"d":"R0.00"},{"v":0,"d":"0%"},{"$f":"Table26[[#This Row],[Base_Rate\nR/hr]]+Table26[[#This Row],[Base_Rate\nR/hr]]*(Table26[[#This Row],[Provident %]]+Table26[[#This Row],[SickFund %]]+Table26[[#This Row],[Leave Enhancement %]]+Table26[[#This Row],[PPE Admin %]]+Table26[[#This Row],[Overheads %]])+Table26[[#This Row],[Admin Levies]]+Table26[[#This Row],[Subsistence allowance]]","v":{"v":0,"d":"R0.00"}},{"$f":"Table26[[#This Row],[Margin %]]*Table26[[#This Row],[Base_Rate\nR/hr]]","v":{"v":0,"d":"R0.00"}},{"$f":"Table26[[#This Row],[Rate excl. Margin]]+Table26[[#This Row],[Margin]]","v":{"v":0,"d":"R0.00"}}]
[3,"Assistant (Labourer)",{"$nulls":3},{"v":0,"d":"R0.00"},{"v":0,"d":"0%"},{"v":0,"d":"0%"},{"v":0,"d":"0%"},{"v":0,"d":"0%"},{"v":0,"d":"0%"},{"v":0,"d":"R0.00"},{"v":0,"d":"R0.00"},{"v":0,"d":"0%"},{"$f":"Table26[[#This Row],[Base_Rate\nR/hr]]+Table26[[#This Row],[Base_Rate\nR/hr]]*(Table26[[#This Row],[Provident %]]+Table26[[#This Row],[SickFund %]]+Table26[[#This Row],[Leave Enhancement %]]+Table26[[#This Row],[PPE Admin %]]+Table26[[#This Row],[Overheads %]])+Table26[[#This Row],[Admin Levies]]+Table26[[#This Row],[Subsistence allowance]]","v":{"v":0,"d":"R0.00"}},{"$f":"Table26[[#This Row],[Margin %]]*Table26[[#This Row],[Base_Rate\nR/hr]]","v":{"v":0,"d":"R0.00"}},{"$f":"Table26[[#This Row],[Rate excl. Margin]]+Table26[[#This Row],[Margin]]","v":{"v":0,"d":"R0.00"}}]
[4,"Specialised Welder (A-Class applicable for Level 1 plant Fans only)",{"$nulls":3},{"v":0,"d":"R0.00"},{"v":0,"d":"0%"},{"v":0,"d":"0%"},{"v":0,"d":"0%"},{"v":0,"d":"0%"},{"v":0,"d":"0%"},{"v":0,"d":"R0.00"},{"v":0,"d":"R0.00"},{"v":0,"d":"0%"},{"$f":"Table26[[#This Row],[Base_Rate\nR/hr]]+Table26[[#This Row],[Base_Rate\nR/hr]]*(Table26[[#This Row],[Provident %]]+Table26[[#This Row],[SickFund %]]+Table26[[#This Row],[Leave Enhancement %]]+Table26[[#This Row],[PPE Admin %]]+Table26[[#This Row],[Overheads %]])+Table26[[#This Row],[Admin Levies]]+Table26[[#This Row],[Subsistence allowance]]","v":{"v":0,"d":"R0.00"}},{"$f":"Table26[[#This Row],[Margin %]]*Table26[[#This Row],[Base_Rate\nR/hr]]","v":{"v":0,"d":"R0.00"}},{"$f":"Table26[[#This Row],[Rate excl. Margin]]+Table26[[#This Row],[Margin]]","v":{"v":0,"d":"R0.00"}}]
[5,"Semi-Skilled (Hoist Drivers)",{"$nulls":3},{"v":0,"d":"R0.00"},{"v":0,"d":"0%"},{"v":0,"d":"0%"},{"v":0,"d":"0%"},{"v":0,"d":"0%"},{"v":0,"d":"0%"},{"v":0,"d":"R0.00"},{"v":0,"d":"R0.00"},{"v":0,"d":"0%"},{"$f":"Table26[[#This Row],[Base_Rate\nR/hr]]+Table26[[#This Row],[Base_Rate\nR/hr]]*(Table26[[#This Row],[Provident %]]+Table26[[#This Row],[SickFund %]]+Table26[[#This Row],[Leave Enhancement %]]+Table26[[#This Row],[PPE Admin %]]+Table26[[#This Row],[Overheads %]])+Table26[[#This Row],[Admin Levies]]+Table26[[#This Row],[Subsistence allowance]]","v":{"v":0,"d":"R0.00"}},{"$f":"Table26[[#This Row],[Margin %]]*Table26[[#This Row],[Base_Rate\nR/hr]]","v":{"v":0,"d":"R0.00"}},{"$f":"Table26[[#This Row],[Rate excl. Margin]]+Table26[[#This Row],[Margin]]","v":{"v":0,"d":"R0.00"}}]
[6,"Semi-Skilled (Fork lift Drivers)",{"$nulls":3},{"v":0,"d":"R0.00"},{"v":0,"d":"0%"},{"v":0,"d":"0%"},{"v":0,"d":"0%"},{"v":0,"d":"0%"},{"v":0,"d":"0%"},{"v":0,"d":"R0.00"},{"v":0,"d":"R0.00"},{"v":0,"d":"0%"},{"$f":"Table26[[#This Row],[Base_Rate\nR/hr]]+Table26[[#This Row],[Base_Rate\nR/hr]]*(Table26[[#This Row],[Provident %]]+Table26[[#This Row],[SickFund %]]+Table26[[#This Row],[Leave Enhancement %]]+Table26[[#This Row],[PPE Admin %]]+Table26[[#This Row],[Overheads %]])+Table26[[#This Row],[Admin Levies]]+Table26[[#This Row],[Subsistence allowance]]","v":{"v":0,"d":"R0.00"}},{"$f":"Table26[[#This Row],[Margin %]]*Table26[[#This Row],[Base_Rate\nR/hr]]","v":{"v":0,"d":"R0.00"}},{"$f":"Table26[[#This Row],[Rate excl. Margin]]+Table26[[#This Row],[Margin]]","v":{"v":0,"d":"R0.00"}}]
[7,"Semi-Skilled (Crane Drivers)",{"$nulls":3},{"v":0,"d":"R0.00"},{"v":0,"d":"0%"},{"v":0,"d":"0%"},{"v":0,"d":"0%"},{"v":0,"d":"0%"},{"v":0,"d":"0%"},{"v":0,"d":"R0.00"},{"v":0,"d":"R0.00"},{"v":0,"d":"0%"},{"$f":"Table26[[#This Row],[Base_Rate\nR/hr]]+Table26[[#This Row],[Base_Rate\nR/hr]]*(Table26[[#This Row],[Provident %]]+Table26[[#This Row],[SickFund %]]+Table26[[#This Row],[Leave Enhancement %]]+Table26[[#This Row],[PPE Admin %]]+Table26[[#This Row],[Overheads %]])+Table26[[#This Row],[Admin Levies]]+Table26[[#This Row],[Subsistence allowance]]","v":{"v":0,"d":"R0.00"}},{"$f":"Table26[[#This Row],[Margin %]]*Table26[[#This Row],[Base_Rate\nR/hr]]","v":{"v":0,"d":"R0.00"}},{"$f":"Table26[[#This Row],[Rate excl. Margin]]+Table26[[#This Row],[Margin]]","v":{"v":0,"d":"R0.00"}}]
[8,"Hot Work Observer",{"$nulls":3},{"v":0,"d":"R0.00"},{"v":0,"d":"0%"},{"v":0,"d":"0%"},{"v":0,"d":"0%"},{"v":0,"d":"0%"},{"v":0,"d":"0%"},{"v":0,"d":"R0.00"},{"v":0,"d":"R0.00"},{"v":0,"d":"0%"},{"$f":"Table26[[#This Row],[Base_Rate\nR/hr]]+Table26[[#This Row],[Base_Rate\nR/hr]]*(Table26[[#This Row],[Provident %]]+Table26[[#This Row],[SickFund %]]+Table26[[#This Row],[Leave Enhancement %]]+Table26[[#This Row],[PPE Admin %]]+Table26[[#This Row],[Overheads %]])+Table26[[#This Row],[Admin Levies]]+Table26[[#This Row],[Subsistence allowance]]","v":{"v":0,"d":"R0.00"}},{"$f":"Table26[[#This Row],[Margin %]]*Table26[[#This Row],[Base_Rate\nR/hr]]","v":{"v":0,"d":"R0.00"}},{"$f":"Table26[[#This Row],[Rate excl. Margin]]+Table26[[#This Row],[Margin]]","v":{"v":0,"d":"R0.00"}}]
[9,"Planner",{"$nulls":3},{"v":0,"d":"R0.00"},{"v":0,"d":"0%"},{"v":0,"d":"0%"},{"v":0,"d":"0%"},{"v":0,"d":"0%"},{"v":0,"d":"0%"},{"v":0,"d":"R0.00"},{"v":0,"d":"R0.00"},{"v":0,"d":"0%"},{"$f":"Table26[[#This Row],[Base_Rate\nR/hr]]+Table26[[#This Row],[Base_Rate\nR/hr]]*(Table26[[#This Row],[Provident %]]+Table26[[#This Row],[SickFund %]]+Table26[[#This Row],[Leave Enhancement %]]+Table26[[#This Row],[PPE Admin %]]+Table26[[#This Row],[Overheads %]])+Table26[[#This Row],[Admin Levies]]+Table26[[#This Row],[Subsistence allowance]]","v":{"v":0,"d":"R0.00"}},{"$f":"Table26[[#This Row],[Margin %]]*Table26[[#This Row],[Base_Rate\nR/hr]]","v":{"v":0,"d":"R0.00"}},{"$f":"Table26[[#This Row],[Rate excl. Margin]]+Table26[[#This Row],[Margin]]","v":{"v":0,"d":"R0.00"}}]
[10,"Rigger (above 5 Ton)",{"$nulls":3},{"v":0,"d":"R0.00"},{"v":0,"d":"0%"},{"v":0,"d":"0%"},{"v":0,"d":"0%"},{"v":0,"d":"0%"},{"v":0,"d":"0%"},{"v":0,"d":"R0.00"},{"v":0,"d":"R0.00"},{"v":0,"d":"0%"},{"$f":"Table26[[#This Row],[Base_Rate\nR/hr]]+Table26[[#This Row],[Base_Rate\nR/hr]]*(Table26[[#This Row],[Provident %]]+Table26[[#This Row],[SickFund %]]+Table26[[#This Row],[Leave Enhancement %]]+Table26[[#This Row],[PPE Admin %]]+Table26[[#This Row],[Overheads %]])+Table26[[#This Row],[Admin Levies]]+Table26[[#This Row],[Subsistence allowance]]","v":{"v":0,"d":"R0.00"}},{"$f":"Table26[[#This Row],[Margin %]]*Table26[[#This Row],[Base_Rate\nR/hr]]","v":{"v":0,"d":"R0.00"}},{"$f":"Table26[[#This Row],[Rate excl. Margin]]+Table26[[#This Row],[Margin]]","v":{"v":0,"d":"R0.00"}}]
[11,"Axial Flow Supervisor",{"$nulls":3},{"v":0,"d":"R0.00"},{"v":0,"d":"0%"},{"v":0,"d":"0%"},{"v":0,"d":"0%"},{"v":0,"d":"0%"},{"v":0,"d":"0%"},{"v":0,"d":"R0.00"},{"v":0,"d":"R0.00"},{"v":0,"d":"0%"},{"$f":"Table26[[#This Row],[Base_Rate\nR/hr]]+Table26[[#This Row],[Base_Rate\nR/hr]]*(Table26[[#This Row],[Provident %]]+Table26[[#This Row],[SickFund %]]+Table26[[#This Row],[Leave Enhancement %]]+Table26[[#This Row],[PPE Admin %]]+Table26[[#This Row],[Overheads %]])+Table26[[#This Row],[Admin Levies]]+Table26[[#This Row],[Subsistence allowance]]","v":{"v":0,"d":"R0.00"}},{"$f":"Table26[[#This Row],[Margin %]]*Table26[[#This Row],[Base_Rate\nR/hr]]","v":{"v":0,"d":"R0.00"}},{"$f":"Table26[[#This Row],[Rate excl. Margin]]+Table26[[#This Row],[Margin]]","v":{"v":0,"d":"R0.00"}}]
[12,"Axial Flow Fitter (where Applicable)",{"$nulls":3},{"v":0,"d":"R0.00"},{"v":0,"d":"0%"},{"v":0,"d":"0%"},{"v":0,"d":"0%"},{"v":0,"d":"0%"},{"v":0,"d":"0%"},{"v":0,"d":"R0.00"},{"v":0,"d":"R0.00"},{"v":0,"d":"0%"},{"$f":"Table26[[#This Row],[Base_Rate\nR/hr]]+Table26[[#This Row],[Base_Rate\nR/hr]]*(Table26[[#This Row],[Provident %]]+Table26[[#This Row],[SickFund %]]+Table26[[#This Row],[Leave Enhancement %]]+Table26[[#This Row],[PPE Admin %]]+Table26[[#This Row],[Overheads %]])+Table26[[#This Row],[Admin Levies]]+Table26[[#This Row],[Subsistence allowance]]","v":{"v":0,"d":"R0.00"}},{"$f":"Table26[[#This Row],[Margin %]]*Table26[[#This Row],[Base_Rate\nR/hr]]","v":{"v":0,"d":"R0.00"}},{"$f":"Table26[[#This Row],[Rate excl. Margin]]+Table26[[#This Row],[Margin]]","v":{"v":0,"d":"R0.00"}}]
[13,"Axial Flow Semi Skill (where Applicable)",{"$nulls":3},{"v":0,"d":"R0.00"},{"v":0,"d":"0%"},{"v":0,"d":"0%"},{"v":0,"d":"0%"},{"v":0,"d":"0%"},{"v":0,"d":"0%"},{"v":0,"d":"R0.00"},{"v":0,"d":"R0.00"},{"v":0,"d":"0%"},{"$f":"Table26[[#This Row],[Base_Rate\nR/hr]]+Table26[[#This Row],[Base_Rate\nR/hr]]*(Table26[[#This Row],[Provident %]]+Table26[[#This Row],[SickFund %]]+Table26[[#This Row],[Leave Enhancement %]]+Table26[[#This Row],[PPE Admin %]]+Table26[[#This Row],[Overheads %]])+Table26[[#This Row],[Admin Levies]]+Table26[[#This Row],[Subsistence allowance]]","v":{"v":0,"d":"R0.00"}},{"$f":"Table26[[#This Row],[Margin %]]*Table26[[#This Row],[Base_Rate\nR/hr]]","v":{"v":0,"d":"R0.00"}},{"$f":"Table26[[#This Row],[Rate excl. Margin]]+Table26[[#This Row],[Margin]]","v":{"v":0,"d":"R0.00"}}]
[14,"Axial Flow Assistant (where Applicable)",{"$nulls":3},{"v":0,"d":"R0.00"},{"v":0,"d":"0%"},{"v":0,"d":"0%"},{"v":0,"d":"0%"},{"v":0,"d":"0%"},{"v":0,"d":"0%"},{"v":0,"d":"R0.00"},{"v":0,"d":"R0.00"},{"v":0,"d":"0%"},{"$f":"Table26[[#This Row],[Base_Rate\nR/hr]]+Table26[[#This Row],[Base_Rate\nR/hr]]*(Table26[[#This Row],[Provident %]]+Table26[[#This Row],[SickFund %]]+Table26[[#This Row],[Leave Enhancement %]]+Table26[[#This Row],[PPE Admin %]]+Table26[[#This Row],[Overheads %]])+Table26[[#This Row],[Admin Levies]]+Table26[[#This Row],[Subsistence allowance]]","v":{"v":0,"d":"R0.00"}},{"$f":"Table26[[#This Row],[Margin %]]*Table26[[#This Row],[Base_Rate\nR/hr]]","v":{"v":0,"d":"R0.00"}},{"$f":"Table26[[#This Row],[Rate excl. Margin]]+Table26[[#This Row],[Margin]]","v":{"v":0,"d":"R0.00"}}]
[15,"Site Manager",{"$nulls":3},{"v":0,"d":"R0.00"},{"v":0,"d":"0%"},{"v":0,"d":"0%"},{"v":0,"d":"0%"},{"v":0,"d":"0%"},{"v":0,"d":"0%"},{"v":0,"d":"R0.00"},{"v":0,"d":"R0.00"},{"v":0,"d":"0%"},{"$f":"Table26[[#This Row],[Base_Rate\nR/hr]]+Table26[[#This Row],[Base_Rate\nR/hr]]*(Table26[[#This Row],[Provident %]]+Table26[[#This Row],[SickFund %]]+Table26[[#This Row],[Leave Enhancement %]]+Table26[[#This Row],[PPE Admin %]]+Table26[[#This Row],[Overheads %]])+Table26[[#This Row],[Admin Levies]]+Table26[[#This Row],[Subsistence allowance]]","v":{"v":0,"d":"R0.00"}},{"$f":"Table26[[#This Row],[Margin %]]*Table26[[#This Row],[Base_Rate\nR/hr]]","v":{"v":0,"d":"R0.00"}},{"$f":"Table26[[#This Row],[Rate excl. Margin]]+Table26[[#This Row],[Margin]]","v":{"v":0,"d":"R0.00"}}]
[16,"Service Engineer (Balance and Alignment Technician)",{"$nulls":3},{"v":0,"d":"R0.00"},{"v":0,"d":"0%"},{"v":0,"d":"0%"},{"v":0,"d":"0%"},{"v":0,"d":"0%"},{"v":0,"d":"0%"},{"v":0,"d":"R0.00"},{"v":0,"d":"R0.00"},{"v":0,"d":"0%"},{"$f":"Table26[[#This Row],[Base_Rate\nR/hr]]+Table26[[#This Row],[Base_Rate\nR/hr]]*(Table26[[#This Row],[Provident %]]+Table26[[#This Row],[SickFund %]]+Table26[[#This Row],[Leave Enhancement %]]+Table26[[#This Row],[PPE Admin %]]+Table26[[#This Row],[Overheads %]])+Table26[[#This Row],[Admin Levies]]+Table26[[#This Row],[Subsistence allowance]]","v":{"v":0,"d":"R0.00"}},{"$f":"Table26[[#This Row],[Margin %]]*Table26[[#This Row],[Base_Rate\nR/hr]]","v":{"v":0,"d":"R0.00"}},{"$f":"Table26[[#This Row],[Rate excl. Margin]]+Table26[[#This Row],[Margin]]","v":{"v":0,"d":"R0.00"}}]
[17,"Engineer, Design Engineer,Test Engineer",{"$nulls":3},{"v":0,"d":"R0.00"},{"v":0,"d":"0%"},{"v":0,"d":"0%"},{"v":0,"d":"0%"},{"v":0,"d":"0%"},{"v":0,"d":"0%"},{"v":0,"d":"R0.00"},{"v":0,"d":"R0.00"},{"v":0,"d":"0%"},{"$f":"Table26[[#This Row],[Base_Rate\nR/hr]]+Table26[[#This Row],[Base_Rate\nR/hr]]*(Table26[[#This Row],[Provident %]]+Table26[[#This Row],[SickFund %]]+Table26[[#This Row],[Leave Enhancement %]]+Table26[[#This Row],[PPE Admin %]]+Table26[[#This Row],[Overheads %]])+Table26[[#This Row],[Admin Levies]]+Table26[[#This Row],[Subsistence allowance]]","v":{"v":0,"d":"R0.00"}},{"$f":"Table26[[#This Row],[Margin %]]*Table26[[#This Row],[Base_Rate\nR/hr]]","v":{"v":0,"d":"R0.00"}},{"$f":"Table26[[#This Row],[Rate excl. Margin]]+Table26[[#This Row],[Margin]]","v":{"v":0,"d":"R0.00"}}]
[18,"Draughtsman",{"$nulls":3},{"v":0,"d":"R0.00"},{"v":0,"d":"0%"},{"v":0,"d":"0%"},{"v":0,"d":"0%"},{"v":0,"d":"0%"},{"v":0,"d":"0%"},{"v":0,"d":"R0.00"},{"v":0,"d":"R0.00"},{"v":0,"d":"0%"},{"$f":"Table26[[#This Row],[Base_Rate\nR/hr]]+Table26[[#This Row],[Base_Rate\nR/hr]]*(Table26[[#This Row],[Provident %]]+Table26[[#This Row],[SickFund %]]+Table26[[#This Row],[Leave Enhancement %]]+Table26[[#This Row],[PPE Admin %]]+Table26[[#This Row],[Overheads %]])+Table26[[#This Row],[Admin Levies]]+Table26[[#This Row],[Subsistence allowance]]","v":{"v":0,"d":"R0.00"}},{"$f":"Table26[[#This Row],[Margin %]]*Table26[[#This Row],[Base_Rate\nR/hr]]","v":{"v":0,"d":"R0.00"}},{"$f":"Table26[[#This Row],[Rate excl. Margin]]+Table26[[#This Row],[Margin]]","v":{"v":0,"d":"R0.00"}}]

{"sheet":"Labour Rates","index":4,"n_rows":29,"n_cols":7,"rows_kept":29,"merged":[[0,0,0,6],[1,3,1,4],[1,5,1,6],[23,1,23,6],[24,1,24,6],[25,1,25,6],[26,1,26,6],[27,1,27,6],[28,1,28,6]]}
["Resource Rates "]
[{"$nulls":3},"Core Crew",null,"Outage Crew"]
["No.","Description/Designation","Abbreviation in Task Menu","Hourly Rates Normal Time ","Basic Rate Normal Time","Hourly Rates Normal Time ","Basic Rate Normal Time"]
[1,"Site Manager"]
[{"$f":"+A4+1","v":2},"Supervisor (includes Welding Supervisor"]
[{"$f":"+A5+1","v":3},"Clerk (Includes Time Clerk Admin Clerk)"]
[{"$f":"+A6+1","v":4},"Storeman"]
[5,"QC Inspector"]
[6,"Safety Officer"]
[7,"Hot Work Observer"]
[8,"Planner"]
[9,"Rigger (above 5 Ton)"]
[10,"Axial Flow Fan Supervisor"]
[11,"Engineer, Design Engineer,Test Engineer"]
[12,"Draughtsman"]
[13,"Service Engineer (Balance and Alignment Technician)","SE"]
[14,"Artisan / Welder (Includes B-Class Welder,Fitter,Pipe Fitter)","A"]
[15,"Assistant (Labourer)","L"]
[16,"Specialised Welder (A-Class applicable for Level 1 plant Fans only)","W"]
[{"$f":"+A19+1","v":17},"Semi-Skilled (Includes Hoist Drivers,Fork lift Drivers and Crane Drivers)","S/S"]
[18,"Axial Flow Fan Fitter (were Applicable)","A"]
[19,"Axial Flow Fan Semi Skill (were Applicable)","S/S"]
[20,"Axial Flow Fan Assistant (were Applicable)","L"]
[]
[null,"Sevices NOT generally required on Core Crew will be apllied via the Outage Crew rate if and when required."]
[]
[null,"All cost related to internal functions / resources, if required, must be accounted for in the rates within the menu price list."]
[null,"These are seen as overheads and suppliers are expected to optimise on these resources depending on circumstances."]
[null,"* Items in Blue are charged under the menu price list"]

{"sheet":"Accomodation Rates","index":5,"n_rows":21,"n_cols":15,"rows_kept":21,"merged":[[0,0,0,14]]}
["Accomodation Rates Per Person, Per Station Per Day "]
[null,1,2,3,4,5,6,7,8,9,10,11,12,13,14]
["Station","Arnot","Camden","Duvha","Grootvlei","Hendrina","Kendal","Kriel","Kusile","Lethabo","Majuba","Matimba","Matla","Medupi","Tutuka"]
["Managerial"]
["Non Managerial"]
[]
["* Accomodation only applies to Outage related scopes, and personal not local to site."]
["* Unskilled labour must be employed from local to site, and will not attract accomodation."]
{"$rows_empty":12}
[{"$nulls":5}," "]

{"sheet":"Travelling","index":6,"n_rows":14,"n_cols":15,"rows_kept":14,"merged":[[0,0,0,14],[8,0,8,14]]}
["Travelling Rates Per Station"]
["Rate/km",1,2,3,4,5,6,7,8,9,10,11,12,13,14]
["Station","Arnot","Camden","Duvha","Grootvlei","Hendrina","Kendal","Kriel","Kusile","Lethabo","Majuba","Matimba","Matla","Medupi","Tutuka"]
["Vehicle / Bakkie"]
["Standard Distance in Km to each station"]
[]
[]
[]
["Travelling Rates Per Station"]
["R/Km per person",1,2,3,4,5,6,7,8,9,10,11,12,13,14]
["Station","Arnot","Camden","Duvha","Grootvlei","Hendrina","Kendal","Kriel","Kusile","Lethabo","Majuba","Matimba","Matla","Medupi","Tutuka"]
["Mass Transport (Kombi)"]
["Standard Distance in Km Local to site Labour"]
["Standard Distance in Km Non Local to site Labour"]